bitfinex/quotes_ETHUSD_20241119
["timestamp","ask_amount","ask_price","bid_price","bid_amount"]
[1731992162464,0.60762967,3123.7,3123.6,5.25997239]
[1731992162760,0.23370372,3123.7,3123.6,6.11047239]
[1731992164013,0.23370372,3123.7,3123.6,6.17436145]
[1731992164473,0.31173861,3124.5,3124.3,3.20065]
[1731992164760,0.90026789,3124.4,3124.3,3.20065]
[1731992165454,1.21204424,3124.4,3123.8,0.06388561]
[1731992165770,3.19981,3125.2,3124.5,3.2005]
[1731992165910,0.900771,3125.1,3124.5,3.2005]
[1731992166119,3.1996,3125.4,3124.3,3.20071]
[1731992166120,0.900771,3125.0,3124.3,3.20071]
[1731992166429,3.20133,3123.7,3123.3,4.0]
[1731992166642,3.86813451,3123.7,3123.3,4.0]
[1731992166847,0.900771,3123.6,3123.3,4.0]
[1731992167020,0.31188491,3123.4,3123.3,4.0]
[1731992167222,1.21265591,3123.4,3123.3,4.0]
[1731992167658,0.900771,3123.4,3123.3,7.20174]
[1731992168317,0.60831288,3123.4,3123.3,7.20174]
[1731992168518,0.60831288,3123.4,3123.3,8.321047]
[1731992168718,0.23396649,3123.4,3123.3,8.321047]
[1731992168967,0.37419288,3123.9,3123.3,5.129207]
[1731992169215,0.23388166,3123.8,3123.4,0.5928607]
[1731992169421,0.37422512,3124.2,3124.1,3.20092]
[1731992169737,0.9006256,3124.2,3123.8,3.20117]
[1731992169937,0.9006256,3124.1,3123.8,3.20117]
[1731992170116,0.9006256,3124.0,3123.8,3.20117]
[1731992170321,0.60818088,3123.9,3123.3,4.0]
[1731992170649,0.31188491,3123.7,3123.3,4.0]
[1731992170820,0.90077643,3123.6,3123.4,3.20162]
[1731992171022,0.90077643,3123.5,3123.4,3.20162]
[1731992171451,0.90085388,3123.5,3123.4,3.20162]
[1731992172355,0.52662694,3123.5,3123.4,3.20162]
[1731992172519,0.23395576,3123.5,3123.4,3.20162]
[1731992172719,0.23395576,3123.5,3123.4,4.88210645]
[1731992172931,2.93798587,3124.6,3123.9,3.20104]
[1731992172932,0.31188491,3124.3,3123.9,3.20104]
[1731992173135,0.9017128,3124.2,3124.0,3.201]
[1731992173334,0.9017128,3124.1,3124.0,3.201]
[1731992173535,0.52711413,3124.1,3123.4,0.9161]
[1731992173745,0.90184198,3124.0,3123.4,0.9161]
[1731992174045,4.41022198,3123.9,3123.3,4.0]
[1731992174227,0.90184198,3123.8,3123.3,4.0]
[1731992174422,4.10321198,3123.7,3123.3,4.0]
[1731992174626,0.90184198,3123.6,3123.3,4.0]
[1731992174957,4.10344198,3123.5,3123.3,4.0]
[1731992175128,4.10347198,3123.4,3123.3,4.0]
[1731992176249,0.90184198,3123.4,3123.3,4.0]
[1731992176426,0.23420846,3123.4,3123.3,7.921924]
[1731992176630,0.23420846,3123.4,3123.3,8.782024]
[1731992177127,3.20122,3123.8,3123.3,4.0]
[1731992177457,0.90209319,3123.7,3123.4,3.20162]
[1731992177768,0.52734919,3123.6,3123.5,3.20146]
[1731992178130,0.52734919,3123.6,3123.3,4.0]
[1731992178336,0.90209319,3123.5,3123.3,4.0]
[1731992178585,0.90209319,3123.4,3123.3,4.0]
[1731992178880,4.10372319,3123.4,3123.3,4.0]
[1731992179170,0.90209319,3123.4,3123.3,4.0]
[1731992180086,0.90209319,3123.4,3123.3,7.20174]
[1731992180427,0.52734919,3123.4,3123.3,7.20174]
[1731992180647,0.23438057,3123.4,3123.3,7.20174]
[1731992180880,0.52761957,3123.4,3123.3,4.0]
[1731992181397,0.90236357,3123.4,3123.3,7.20174]
[1731992181598,0.23438057,3123.4,3123.3,7.20174]
[1731992182153,3.575844,3124.0,3123.3,7.20174]
[1731992182347,0.90274984,3123.9,3123.3,7.20174]
[1731992182655,0.90274984,3123.8,3123.3,7.20174]
[1731992182856,0.90274984,3123.7,3123.3,4.0]
[1731992183086,0.90274984,3123.6,3123.3,7.20171]
[1731992183291,0.90274984,3123.5,3123.3,7.20171]
[1731992183517,0.90274984,3123.4,3123.3,4.0]
[1731992183645,0.52800584,3123.4,3123.3,4.0]
[1731992183851,0.52800584,3123.4,3123.3,7.20174]
[1731992184089,0.23464146,3123.4,3123.3,7.20174]
[1731992184899,0.52820485,3123.4,3123.3,7.20174]
[1731992185084,0.37576734,3123.8,3123.3,4.0]
[1731992185300,0.29375061,3123.7,3123.6,3.20133]
[1731992185597,0.61076783,3123.7,3123.6,3.20133]
[1731992185766,0.23500049,3123.7,3123.6,3.20133]
[1731992186099,0.52878756,3123.7,3123.6,3.20133]
[1731992186263,0.90481426,3123.7,3123.4,3.20155]
[1731992186604,0.90481426,3123.6,3123.5,3.20153]
[1731992187108,0.54221669,3123.6,3123.3,4.0]
[1731992187253,0.90482575,3123.5,3123.3,4.0]
[1731992187455,0.90482575,3123.4,3123.3,4.0]
[1731992187882,4.10645575,3123.4,3123.3,4.0]
[1731992188087,3.50907212,3123.4,3123.3,4.0]
[1731992188758,0.90482575,3123.4,3123.3,4.0]
[1731992189109,3.82227703,3123.4,3123.3,4.0]
[1731992189402,0.90472615,3123.4,3123.3,4.0]
[1731992191104,3.50897252,3123.4,3123.3,4.0]
[1731992191309,4.18398378,3123.4,3123.3,4.0]
[1731992191460,0.90472615,3123.4,3123.3,4.0]
[1731992191662,3.53016781,3123.4,3123.3,4.0]
[1731992192009,3.53019655,3123.4,3123.3,4.0]
[1731992192373,4.18398378,3123.4,3123.3,4.0]
[1731992192709,3.53079009,3123.4,3123.3,4.0]
[1731992193565,4.18391477,3123.4,3123.3,4.0]
[1731992193766,3.53160094,3123.4,3123.3,4.0]
[1731992194009,0.90465714,3123.4,3123.3,4.0]
[1731992194563,4.50231369,3123.4,3123.3,4.0]
[1731992194764,4.18901268,3123.4,3123.3,4.0]
[1731992195008,0.90465714,3123.4,3123.3,4.0]
[1731992195164,4.18901268,3123.4,3123.3,4.0]
[1731992195978,4.18931638,3123.4,3123.3,4.0]
[1731992196599,4.5231516,3123.4,3123.3,4.0]
[1731992197162,1.23879606,3123.4,3123.3,4.0]
[1731992197407,1.55209707,3123.4,3123.3,4.0]
[1731992197614,1.23879606,3123.4,3123.3,4.0]
[1731992199315,1.23879606,3123.4,3123.3,7.20174]
[1731992199568,0.62785909,3123.4,3123.3,7.20174]
[1731992199868,1.23969501,3123.4,3123.3,7.20174]
[1731992201121,1.23969501,3123.4,3123.3,4.0]
[1731992202045,1.23969501,3123.4,3123.3,9.086411]
[1731992202364,0.56915673,3123.4,3123.3,9.086411]
[1731992202563,2.54410146,3123.4,3123.3,9.406311]
[1731992202863,2.63315684,3123.4,3123.3,9.406311]
[1731992203030,3.29139103,3123.6,3123.4,3.52153]
[1731992203251,0.61205981,3123.5,3123.4,0.3199]
[1731992203782,0.23540762,3123.5,3123.4,4.45323]
[1731992203948,0.61220809,3123.5,3123.4,5.93891]
[1731992204136,3.90406129,3123.5,3123.4,5.93891]
[1731992204342,0.61220809,3123.5,3123.4,5.93891]
[1731992204539,2.86879081,3123.5,3123.4,5.93891]
[1731992205042,2.63338319,3123.7,3123.6,3.52133]
[1731992205267,2.86887038,3123.7,3123.6,3.52133]
[1731992206195,3.24557571,3123.7,3123.6,3.22133]
[1731992206342,2.86908275,3123.7,3123.6,3.22133]
[1731992206545,3.29194331,3124.0,3123.8,3.52112]
[1731992206917,2.86895934,3123.9,3123.8,3.52112]
[1731992207239,0.23538627,3123.9,3123.8,4.26900904]
[1731992207442,2.63357307,3124.0,3123.9,3.52102]
[1731992207780,2.86888019,3124.0,3123.9,3.52102]
[1731992207942,2.63357307,3124.0,3123.9,4.45622]
[1731992208143,3.29194331,3124.2,3124.0,3.20102]
[1731992208144,2.63357307,3124.1,3124.0,3.20102]
[1731992208473,2.63357307,3124.2,3124.0,3.20102]
[1731992208644,2.63357307,3124.2,3124.1,3.20092]
[1731992208840,2.86877198,3124.2,3124.1,3.20092]
[1731992209472,3.29153027,3124.3,3124.2,3.20081]
[1731992209678,4.92190439,3124.9,3124.3,3.52061]
[1731992209679,3.29153027,3124.4,3124.3,3.52061]
[1731992209988,0.37619932,3124.6,3124.5,3.20051]
[1731992210172,3.94983632,3124.8,3124.7,3.2003]
[1731992210356,4.18486038,3124.8,3124.7,3.2003]
[1731992210563,0.61105712,3124.8,3124.7,3.2003]
[1731992210792,0.61105712,3124.8,3123.9,3.20112]
[1731992210793,0.3057,3124.7,3123.9,3.20112]
[1731992211106,3.2907562,3124.2,3124.1,3.20092]
[1731992211419,3.52578026,3124.2,3124.1,3.20092]
[1731992211629,2.63282172,3124.2,3124.1,3.84928978]
[1731992211810,2.63282172,3124.3,3124.2,3.20081]
[1731992212120,2.63282172,3124.4,3124.3,3.20071]
[1731992212334,2.63262048,3124.4,3124.3,3.20071]
[1731992212486,3.94924103,3124.7,3124.6,3.20031]
[1731992212680,0.23489431,3124.7,3124.6,3.20031]
[1731992213082,0.23489431,3124.7,3124.6,4.07761]
[1731992213620,4.3249272,3125.0,3124.9,3.2001]
[1731992213825,4.55829626,3125.0,3124.9,3.2001]
[1731992214034,0.2347963,3125.0,3124.9,3.2001]
[1731992214680,2.63156599,3125.0,3124.9,3.2001]
[1731992214882,0.3057,3125.6,3124.9,3.2001]
[1731992214883,2.63156599,3125.1,3125.0,3.2]
[1731992215277,2.63156599,3125.3,3125.2,3.19979]
[1731992215473,0.3057,3125.6,3124.6,0.8872]
[1731992215474,3.94781379,3125.6,3125.3,3.19969]
[1731992215704,0.23459871,3125.5,3125.4,3.19959]
[1731992216375,2.86349808,3125.5,3125.4,3.19959]
[1731992216578,0.23459871,3125.5,3125.4,3.19959]
[1731992216779,2.86382222,3125.5,3125.4,4.08119]
[1731992217091,4.60578276,3126.2,3125.5,3.19948]
[1731992217092,0.37535631,3125.6,3125.5,3.19948]
[1731992217407,2.62922351,3125.8,3125.7,3.19928]
[1731992217613,3.00457982,3125.9,3125.6,3.19938]
[1731992217810,2.62922351,3125.9,3125.8,3.19918]
[1731992218008,2.62922351,3126.0,3125.8,3.19918]
[1731992218194,2.62922351,3126.1,3125.8,3.19918]
[1731992218399,2.62922351,3126.2,3125.4,4.0811]
[1731992218630,2.62922351,3126.4,3126.2,3.19877]
[1731992218935,2.62922351,3126.6,3126.5,3.19846]
[1731992219084,2.62922351,3126.7,3126.4,3.19856]
[1731992219444,2.62922351,3126.8,3126.6,3.19836]
[1731992220230,2.62922351,3126.8,3126.4,3.19856]
[1731992220231,0.23401762,3126.7,3126.4,3.19856]
[1731992220432,0.23401762,3126.7,3126.5,3.19838]
[1731992220736,0.53969929,3126.6,3126.0,3.19896]
[1731992221023,2.85764642,3126.5,3126.0,3.19896]
[1731992221227,2.85764642,3126.4,3126.0,3.19896]
[1731992221436,0.3057,3126.6,3126.1,3.19884]
[1731992221594,0.23388046,3126.5,3126.0,3.19895]
[1731992222119,2.85753736,3126.5,3125.9,3.19904]
[1731992222285,0.23388046,3126.4,3125.6,4.08446]
[1731992222626,3.19847,3126.5,3125.8,3.19917]
[1731992222627,0.23379227,3126.3,3125.8,3.19917]
[1731992223034,0.23379227,3126.4,3125.9,3.199]
[1731992223177,0.23379466,3126.3,3125.6,1.294546]
[1731992223382,0.37407344,3126.9,3126.2,3.19869]
[1731992223624,0.23374922,3126.8,3126.2,3.19869]
[1731992223793,0.60782266,3126.9,3126.2,3.19869]
[1731992223995,0.23374922,3126.8,3126.6,3.19835]
[1731992224327,0.31172302,3127.4,3126.8,3.19814]
[1731992224328,0.37407344,3127.3,3126.8,3.19814]
[1731992224633,0.23369939,3127.2,3126.8,3.19814]
[1731992224831,0.23369939,3127.1,3126.8,3.19814]
[1731992224984,0.23369939,3127.3,3126.8,3.19814]
[1731992225178,0.3057,3127.4,3126.8,3.19814]
[1731992225179,0.23374508,3127.2,3126.8,3.19814]
[1731992225386,0.3057,3127.4,3126.8,3.19814]
[1731992225634,0.23365222,3127.3,3126.8,3.19814]
[1731992225934,0.3057,3127.4,3126.8,3.19814]
[1731992226141,0.23366563,3127.2,3126.8,3.19814]
[1731992226437,0.3057,3127.4,3126.8,3.19814]
[1731992226637,0.23357283,3127.3,3126.8,3.19814]
[1731992227283,0.23357283,3127.3,3126.9,3.19803]
[1731992227512,0.23352175,3127.2,3126.9,3.19803]
[1731992227681,0.37386501,3127.6,3126.9,3.19803]
[1731992227896,0.23352411,3127.5,3126.8,0.02080417]
[1731992228137,3.19785,3127.1,3126.6,0.8851]
[1731992228284,0.23352411,3127.0,3126.2,4.06625]
[1731992228484,3.43158411,3126.9,3126.3,3.19866]
[1731992228702,0.23352411,3126.8,3126.2,0.8675]
[1731992228901,0.23352411,3126.7,3126.2,4.06619]
[1731992229129,3.19807,3126.9,3126.2,4.06619]
[1731992229426,3.19749,3127.5,3126.2,4.06619]
[1731992229427,0.37386501,3127.0,3126.5,0.0099]
[1731992229635,3.19748,3127.5,3126.8,3.19811]
[1731992229802,3.43109937,3127.4,3126.8,3.19811]
[1731992230002,0.23353937,3127.3,3126.8,3.19811]
[1731992230188,0.23353937,3127.2,3126.8,3.19811]
[1731992230392,0.23353937,3127.1,3126.6,4.06586]
[1731992230617,0.23353937,3127.0,3126.6,4.06586]
[1731992230784,3.19756,3127.4,3126.6,4.06586]
[1731992231142,0.23356871,3127.3,3126.4,3.19856]
[1731992231288,0.23356871,3127.2,3126.4,3.19856]
[1731992231488,0.23356871,3127.1,3126.4,3.19856]
[1731992231832,0.23356871,3127.0,3126.2,0.9271]
[1731992232022,3.43161871,3126.9,3126.2,4.12585]
[1731992232187,0.23356871,3126.8,3126.3,3.19866]
[1731992232392,0.37366299,3127.1,3126.4,3.19848]
[1731992232719,0.23365909,3127.0,3126.4,3.19848]
[1731992232923,3.19816,3126.8,3126.2,0.9271]
[1731992233088,0.2336587,3126.7,3126.2,4.1258]
[1731992233301,0.2336587,3126.6,3126.3,3.1986]
[1731992233498,0.2336587,3126.5,3126.2,0.9271]
[1731992233739,3.19809,3126.9,3126.2,0.9271]
[1731992233946,3.19835,3126.7,3126.2,0.9271]
[1731992234144,0.2337557,3126.6,3126.2,0.9271]
[1731992234294,0.2337557,3126.5,3126.2,0.9271]
[1731992234501,0.2337557,3126.4,3126.2,0.9271]
[1731992234735,0.31154494,3127.1,3126.2,0.9271]
[1731992234736,0.37385393,3126.8,3126.4,3.19846]
[1731992234949,0.23389199,3126.7,3126.3,3.19866]
[1731992235155,0.23389199,3126.6,3126.5,3.19842]
[1731992236440,0.37385393,3126.8,3126.6,3.19834]
[1731992236800,0.31154494,3127.4,3126.5,3.19842]
[1731992236801,0.37385393,3127.2,3126.7,3.19826]
[1731992237001,0.60791616,3127.1,3126.7,3.19826]
[1731992237217,0.60791616,3127.0,3126.7,3.19826]
[1731992237442,0.23406223,3126.9,3126.5,3.19842]
[1731992237615,0.23406223,3126.8,3126.5,3.19837]
[1731992237811,0.23406223,3126.7,3126.6,3.19826]
[1731992239353,0.23406223,3126.7,3126.6,4.38966]
[1731992239647,0.31154494,3127.5,3127.0,3.19787]
[1731992239832,0.60919295,3127.4,3127.1,3.19782]
[1731992240016,0.60919295,3127.3,3127.2,0.3199]
[1731992240215,0.60919295,3127.3,3127.1,3.19782]
[1731992240431,0.60919295,3127.2,3127.1,3.19782]
[1731992240637,0.23430498,3127.2,3127.1,4.40932]
[1731992240838,0.31154494,3128.0,3127.1,1.973219]
[1731992241020,3.19732,3127.7,3127.2,0.3199]
[1731992241344,3.50906494,3127.5,3127.2,0.3199]
[1731992241646,0.60941517,3127.4,3127.2,0.3199]
[1731992241843,3.50906494,3127.5,3127.2,0.3199]
[1731992241844,0.60941517,3127.3,3127.2,0.3199]
[1731992242062,0.60941517,3127.3,3127.0,0.3199]
[1731992242231,3.49949,3127.7,3126.8,4.08973]
[1731992242232,0.60941517,3127.2,3127.1,3.51775]
[1731992242416,0.60941517,3127.2,3127.1,0.3199]
[1731992243309,0.60941517,3127.2,3126.8,0.3199]
[1731992243507,3.19765,3127.3,3126.8,0.3199]
[1731992243729,0.37534146,3127.1,3126.8,0.3199]
[1731992243928,0.60992987,3127.0,3126.8,0.3199]
[1731992244253,0.60992987,3126.9,3126.8,0.3199]
[1731992244450,0.60992987,3126.9,3126.6,0.3199]
[1731992244670,0.60992987,3126.8,3126.6,0.3199]
[1731992244819,0.60992987,3126.7,3126.6,0.3199]
[1731992245025,0.92271442,3126.7,3126.6,0.3199]
[1731992245225,0.60992987,3126.7,3126.6,0.3199]
[1731992245715,0.60992987,3126.7,3126.6,1.08075]
[1731992245919,0.60992987,3126.7,3126.6,4.27911]
[1731992246932,0.60992987,3126.7,3126.6,4.29901]
[1731992247138,0.23458841,3126.7,3126.6,4.29901]
[1731992247320,0.23458841,3126.7,3126.6,5.19061]
[1731992247522,0.31278455,3127.4,3127.3,3.19764]
[1731992247726,0.376267,3127.4,3127.2,3.51764]
[1731992247920,0.376267,3127.4,3126.9,0.8916]
[1731992247921,0.376267,3127.3,3127.0,3.19786]
[1731992248123,0.376267,3127.2,3126.8,3.51802]
[1731992248343,0.376267,3127.1,3126.8,3.51802]
[1731992248549,0.376267,3127.0,3126.8,0.3199]
[1731992248851,0.376267,3126.9,3126.8,3.869865]
[1731992249788,0.376267,3126.9,3126.8,4.761465]
[1731992251244,0.376267,3126.9,3126.8,4.40965]
[1731992251447,3.1975,3127.5,3126.8,4.40965]
[1731992251680,0.37636586,3127.4,3126.8,4.40965]
[1731992251847,0.37636586,3127.3,3126.8,1.2115]
[1731992252047,3.19786,3127.1,3126.6,0.3199]
[1731992252276,0.37636586,3127.0,3126.6,0.3199]
[1731992252474,0.37636586,3126.9,3126.6,0.672733]
[1731992252693,0.37636586,3126.8,3126.6,0.3199]
[1731992252989,0.3022,3127.2,3126.6,0.3199]
[1731992252990,0.37656215,3126.7,3126.6,0.3199]
[1731992253196,0.37656215,3126.7,3126.4,0.3199]
[1731992253354,0.37656215,3126.6,3126.4,0.3199]
[1731992253748,3.57502215,3126.5,3126.4,0.3199]
[1731992253951,3.19868,3126.3,3125.7,3.19927]
[1731992254149,0.37656215,3126.2,3125.8,0.54286439]
[1731992254395,3.19831,3126.7,3126.0,3.1989]
[1731992254647,0.37666895,3126.6,3126.1,0.31989]
[1731992254783,0.37666895,3126.5,3126.1,3.51873]
[1731992254990,0.37666895,3126.4,3126.3,3.19866]
[1731992255297,3.19788,3127.1,3126.5,3.19842]
[1731992255504,3.19806,3126.9,3126.5,0.06381772]
[1731992255792,0.37669404,3126.8,3126.4,3.19847]
[1731992255999,0.37669404,3126.7,3126.4,3.606186]
[1731992256167,0.37669404,3126.6,3126.5,3.19844]
[1731992256368,3.49987,3127.3,3126.5,0.7683346]
[1731992256600,3.11041923,3127.7,3126.5,0.8493]
[1731992256601,0.37671887,3127.2,3126.5,0.8493]
[1731992256904,0.37671887,3127.1,3127.0,3.19794]
[1731992258391,3.19736,3127.6,3127.0,3.19794]
[1731992258697,0.3767191,3127.5,3127.0,3.19794]
[1731992258886,0.3767191,3127.4,3127.0,3.19794]
[1731992259081,0.3767191,3127.3,3127.0,3.837549]
[1731992259282,0.3767191,3127.2,3127.0,3.837549]
[1731992259510,0.23545381,3127.1,3127.0,3.837549]
[1731992261340,0.23545381,3127.1,3127.0,3.19794]
[1731992261556,0.23545381,3127.1,3126.8,3.19815]
[1731992261701,0.23545381,3127.0,3126.8,3.19815]
[1731992261902,0.37668362,3127.2,3126.9,3.19805]
[1731992262096,0.6121161,3127.1,3126.9,3.549855]
[1731992262318,0.23543248,3127.0,3126.9,3.549855]
[1731992263758,0.23543248,3127.0,3126.9,4.476355]
[1731992263912,3.49924,3127.9,3126.9,4.476355]
[1731992263913,0.37691659,3127.4,3126.9,4.476355]
[1731992264116,0.61253206,3127.3,3126.7,0.3199]
[1731992264358,0.61253206,3127.2,3126.7,0.3199]
[1731992264518,0.61253206,3127.1,3126.7,3.51814]
[1731992264851,0.23557892,3127.0,3126.7,3.51814]
[1731992265059,0.23557892,3126.9,3126.7,4.282437]
[1731992265214,3.29441345,3127.4,3126.7,4.282437]
[1731992265215,3.29441345,3127.4,3126.8,3.518]
[1731992265416,0.61275989,3127.3,3127.0,0.3199]
[1731992265641,0.6127726,3127.2,3127.0,0.3199]
[1731992265849,0.2356848,3127.1,3127.0,0.3199]
[1731992266049,0.61276782,3127.1,3127.0,0.3199]
[1731992266460,3.81061782,3127.1,3127.0,0.3199]
[1731992266630,0.61276782,3127.1,3127.0,0.3199]
[1731992267467,3.67259811,3127.1,3127.0,3.19795]
[1731992267677,0.23565555,3127.1,3127.0,3.86955]
[1731992267957,0.23565555,3127.1,3126.9,0.3199]
[1731992268262,0.23565555,3127.0,3126.9,3.51793]
[1731992268919,3.29554923,3127.3,3126.9,3.51793]
[1731992269121,0.23571843,3127.2,3127.1,3.51773]
[1731992269359,3.53320814,3127.2,3127.1,3.51773]
[1731992269686,3.53444342,3127.2,3127.1,3.51773]
[1731992269847,3.53444342,3127.2,3127.1,0.3199]
[1731992270158,0.23571843,3127.2,3127.0,0.3199]
[1731992270361,3.53417701,3127.1,3127.0,0.3199]
[1731992270661,3.5345295,3127.1,3127.0,0.3199]
[1731992270845,0.23571843,3127.1,3127.0,0.3199]
[1731992271052,0.23575055,3127.1,3127.0,0.3199]
[1731992271215,0.23575055,3127.1,3126.8,3.51804]
[1731992271543,3.29967879,3126.9,3126.8,3.51802]
[1731992271718,3.29967879,3126.9,3126.8,4.189676]
[1731992272164,3.95698766,3127.1,3126.9,3.51795]
[1731992272456,0.23586079,3127.0,3126.9,0.3199]
[1731992272959,0.23586079,3127.0,3126.9,3.51795]
[1731992273256,0.23586079,3127.0,3126.9,0.3199]
[1731992273821,0.23586079,3127.0,3126.9,3.51795]
[1731992274048,3.96137252,3127.3,3126.9,3.51795]
[1731992274214,0.23593751,3127.2,3127.1,3.19784]
[1731992274657,0.23593751,3127.2,3126.9,0.3199]
[1731992274899,0.23593751,3127.1,3127.0,3.19795]
[1731992275054,0.23593751,3127.1,3126.9,0.3199]
[1731992275260,0.23593751,3127.0,3126.9,0.3199]
[1731992277004,0.23593751,3127.0,3126.9,3.51795]
[1731992277213,0.23593751,3127.0,3126.7,0.3199]
[1731992277358,3.96137252,3126.8,3126.7,0.3199]
[1731992277562,3.81183215,3126.8,3126.7,0.3199]
[1731992277802,0.61368215,3126.8,3126.7,0.3199]
[1731992277958,3.96447718,3126.8,3126.7,0.3199]
[1731992278165,4.20058021,3126.8,3126.6,0.3199]
[1731992278675,4.20058021,3126.8,3126.7,3.51816]
[1731992278676,0.37776485,3126.8,3126.7,3.51816]
[1731992278871,3.96447718,3127.1,3126.8,0.3199]
[1731992279203,0.23612764,3127.0,3126.9,3.51794]
[1731992279593,3.96447718,3127.3,3126.9,3.51794]
[1731992279594,3.96447718,3127.3,3127.1,0.3199]
[1731992279800,0.23616413,3127.2,3127.1,0.3199]
[1731992280378,4.20064131,3127.2,3127.1,0.3199]
[1731992280579,4.20064131,3127.2,3126.9,3.19801]
[1731992280580,4.20064131,3127.2,3127.0,0.3199]
[1731992280780,0.23616413,3127.1,3127.0,0.3199]
[1731992281323,0.61408334,3127.1,3127.0,0.3199]
[1731992281529,0.61408334,3127.1,3125.5,0.8854]
[1731992281530,0.29,3127.0,3125.5,0.8854]
[1731992281837,0.29,3127.0,3126.1,3.19886]
[1731992281838,3.96672757,3126.6,3126.1,3.19886]
[1731992281981,3.96672757,3126.4,3126.2,3.1987]
[1731992282181,0.23616413,3126.3,3126.2,3.1987]
[1731992282415,3.96697199,3126.7,3126.6,0.3199]
[1731992282615,4.20304172,3126.7,3126.6,3.51826]
[1731992283161,4.2024901,3126.7,3126.6,3.51826]
[1731992283460,0.61380226,3126.7,3126.3,3.51855]
[1731992283658,4.20195172,3126.6,3126.3,3.51855]
[1731992283865,4.57968425,3126.6,3126.3,3.51855]
[1731992284081,4.20195172,3126.5,3126.3,3.51855]
[1731992284359,4.20195172,3126.5,3126.3,0.3199]
[1731992284527,4.20195172,3126.4,3126.3,0.3199]
[1731992284728,4.20195172,3126.4,3125.8,0.3199]
[1731992284729,4.86959723,3126.4,3125.8,0.3199]
[1731992284941,4.86959723,3126.4,3125.6,3.1993]
[1731992284942,3.96588199,3126.0,3125.6,3.1993]
[1731992285144,0.23606973,3125.9,3125.6,3.1993]
[1731992285463,3.96588199,3126.1,3125.6,3.1993]
[1731992285764,0.23585268,3126.0,3125.6,3.1993]
[1731992285947,0.23585268,3125.9,3125.6,3.1993]
[1731992286147,3.96588199,3126.1,3125.6,3.1993]
[1731992286463,0.23584644,3126.0,3125.7,3.19927]
[1731992286617,3.96284757,3126.2,3125.8,3.19911]
[1731992286618,0.37716129,3126.1,3125.8,3.19911]
[1731992286817,3.96284757,3126.2,3125.8,3.19911]
[1731992287040,0.23573472,3126.1,3125.8,3.19911]
[1731992287248,0.23573472,3126.0,3125.6,3.19937]
[1731992287458,0.23573472,3125.9,3125.6,3.19937]
[1731992287764,3.96146372,3126.2,3125.7,3.19925]
[1731992287946,3.96146372,3126.2,3125.6,3.19937]
[1731992287947,0.23561424,3126.1,3125.6,3.19937]
[1731992288150,0.23561424,3126.0,3125.7,3.19926]
[1731992288471,7.16023372,3126.2,3125.4,3.19955]
[1731992288621,10.27094295,3126.0,3125.2,3.19974]
[1731992288827,0.52552876,3125.9,3125.3,3.19967]
[1731992289026,0.23552876,3125.8,3125.3,3.19967]
[1731992289336,3.11041923,3125.4,3124.5,0.63449413]
[1731992289534,3.11041923,3125.4,3124.4,3.20054]
[1731992289535,3.19986,3125.2,3124.4,3.20054]
[1731992289875,3.19986,3125.2,3124.3,3.20062]
[1731992289876,3.20012,3124.9,3124.5,0.640116]
[1731992290078,0.29,3125.0,3124.5,0.640116]
[1731992290245,7.45117372,3125.3,3124.6,3.20039]
[1731992290447,0.23498046,3125.2,3124.7,3.20024]
[1731992290631,3.29263035,3125.1,3124.9,3.20001]
[1731992290839,0.23498046,3125.2,3125.1,3.19989]
[1731992291038,3.29263035,3125.7,3124.9,0.8582]
[1731992291257,3.29263035,3125.8,3125.4,3.1995]
[1731992291549,3.29263035,3125.8,3125.2,3.19978]
[1731992291877,3.29263035,3125.8,3125.0,3.19991]
[1731992291878,3.19944,3125.6,3125.0,3.19991]
[1731992292060,3.29263035,3125.5,3125.0,3.19991]
[1731992292248,6.49193035,3125.7,3125.0,3.19991]
[1731992292777,3.19908,3125.9,3125.1,3.19982]
[1731992293085,7.07188295,3126.0,3124.9,0.8582]
[1731992293086,0.23495216,3125.8,3125.3,3.19965]
[1731992293374,4.24536372,3126.1,3125.3,3.19965]
[1731992293375,0.2839,3126.1,3125.4,3.19948]
[1731992293593,4.85625104,3126.1,3125.4,3.19948]
[1731992293784,0.23495666,3126.0,3125.4,3.19948]
[1731992294139,0.23495666,3126.0,3125.5,3.19946]
[1731992294365,0.23495666,3126.0,3124.9,0.8582]
[1731992294366,0.2839,3125.6,3124.9,3.20002]
[1731992294573,3.48333,3125.6,3124.9,3.20002]
[1731992297086,3.48333,3125.6,3124.4,0.8915]
[1731992297087,0.2839,3125.6,3125.0,3.519982]
[1731992297286,3.483,3125.9,3125.2,3.19972]
[1731992297509,0.2839,3125.9,3125.4,3.19958]
[1731992297872,0.2839,3125.9,3125.5,3.19944]
[1731992298094,0.2839,3125.9,3125.3,3.19962]
[1731992298300,0.2839,3125.9,3125.2,3.19977]
[1731992298633,3.48298,3125.9,3125.3,0.404327]
[1731992298919,3.48298,3125.9,3125.3,3.19969]
[1731992299721,0.2839,3125.9,3125.1,4.04338]
[1731992299984,0.2839,3125.9,3125.5,0.3199]
[1731992300617,0.2839,3126.2,3125.5,3.51937]
[1731992300911,4.61459333,3126.7,3126.4,3.19853]
[1731992300912,3.94679428,3126.7,3126.4,3.19853]
[1731992301118,4.60459333,3127.0,3126.6,0.3199]
[1731992301119,3.94679428,3127.0,3126.6,0.3199]
[1731992301336,3.19796,3127.0,3126.6,0.3199]
[1731992301672,0.23496825,3126.9,3126.6,0.3199]
[1731992301876,0.23496825,3126.8,3126.6,0.3199]
[1731992302071,3.19805,3126.9,3126.4,0.3199]
[1731992302276,0.23496591,3126.8,3126.4,0.3199]
[1731992302586,3.43313591,3126.8,3126.4,0.3199]
[1731992302790,3.19846,3126.5,3126.4,0.3199]
[1731992303120,3.19879,3126.2,3125.7,0.3199]
[1731992303329,6.54384514,3126.5,3125.7,0.3199]
[1731992303330,6.30887923,3126.5,3125.7,0.3199]
[1731992303533,0.61106839,3126.4,3125.9,3.5189]
[1731992303680,3.19838,3126.6,3125.9,3.5189]
[1731992303878,0.23502966,3126.5,3125.9,0.3199]
[1731992304195,3.43359966,3126.4,3125.9,0.3199]